bitfinex-derivatives/quotes_SOLF0:USTF0_20250703
["timestamp","ask_amount","ask_price","bid_price","bid_amount"]
[1751548916381,6.5391,152.88,152.85,6.54]
[1751548917088,8.8757,152.89,152.86,6.5396]
[1751548917384,2.3372,152.89,152.83,242.19241024]
[1751548917586,6.5388,152.88,152.85,6.5398]
[1751548919990,8.8757,152.89,152.86,6.5395]
[1751548920390,2.3372,152.89,152.83,242.19241024]
[1751548920793,2.3372,152.89,152.85,6.5397]
[1751548921293,6.539,152.88,152.83,242.19241024]
[1751548921792,6.5393,152.87,152.83,242.19241024]
[1751548922002,7.12961024,152.89,152.83,242.19241024]
[1751548923296,6.5391,152.88,152.83,242.19241024]
[1751548923694,6.5391,152.88,152.85,6.5396]
[1751548923895,6.5391,152.88,152.83,242.19241024]
[1751548924295,4.79241024,152.89,152.83,242.19241024]
[1751548924795,6.5388,152.88,152.86,6.5396]
[1751548924999,4.22723047,152.9,152.86,4.79241024]
[1751548925187,4.22774692,152.92,152.88,4.79241024]
[1751548925390,6.5368,152.93,152.88,196.33241024]
[1751548925891,6.5368,152.93,152.88,242.09241024]
[1751548926795,6.5368,152.93,152.9,6.5375]
[1751548927187,6.5364,152.94,152.91,6.5374]
[1751548927892,2.1481,152.95,152.88,237.3]
[1751548928096,2.1481,152.95,152.88,45.76]
[1751548928097,4.79241024,152.92,152.88,45.76]
[1751548928497,6.5372,152.92,152.88,45.76]
[1751548929199,6.5372,152.92,152.89,6.538]
[1751548930298,6.5372,152.92,152.9,6.5379]
[1751548931800,6.5376,152.91,152.89,6.5382]
[1751548932994,6.5373,152.92,152.89,6.5382]
[1751548936002,6.5373,152.92,152.9,6.5378]
[1751548937003,6.94051024,152.95,152.88,50.55241024]
[1751548938102,6.5368,152.93,152.91,6.5373]
[1751548939406,6.5364,152.94,152.92,6.537]
[1751548939604,6.5364,152.94,152.88,50.55241024]
[1751548940101,6.5364,152.94,152.91,6.5372]
[1751548942607,6.5366,152.93,152.91,6.5372]
[1751548945510,6.5364,152.94,152.92,6.5371]
[1751548946007,6.5343,152.99,152.97,6.5348]
[1751548946406,6.94201024,153.02,152.97,6.5348]
[1751548946601,6.5339,153.0,152.97,6.5348]
[1751548947005,6.94201024,153.02,152.97,6.5348]
[1751548947206,6.94201024,153.02,152.93,45.74]
[1751548947207,4.79241024,153.0,152.93,45.74]
[1751548947709,6.5347,152.98,152.95,6.5355]
[1751548948209,4.79241024,153.01,152.96,6.5352]
[1751548948906,6.5345,152.98,152.96,6.5352]
[1751548949210,4.79241024,153.01,152.94,4.79241024]
[1751548949703,4.79241024,153.01,152.95,6.5356]
[1751548950308,6.5347,152.98,152.95,6.5356]
[1751548950508,6.5347,152.98,152.96,6.5353]
[1751548951611,6.5349,152.97,152.95,6.5356]
[1751548951814,4.79241024,152.97,152.93,45.74]
[1751548952308,6.5356,152.96,152.93,52.2764]
[1751548952612,4.79241024,152.95,152.93,45.74]
[1751548952912,6.5362,152.94,152.93,45.74]
[1751548955409,6.5362,152.94,152.91,6.5373]
[1751548955714,6.5367,152.93,152.91,6.5373]
[1751548956608,4.79241024,152.94,152.89,45.68]
[1751548956816,4.79241024,152.92,152.89,45.68]
[1751548957115,6.5377,152.91,152.89,45.68]
[1751548957915,6.5377,152.91,152.89,52.2181]
[1751548958710,6.5377,152.91,152.89,45.68]
[1751548960212,6.5379,152.9,152.89,45.68]
[1751548960417,4.79241024,152.9,152.85,45.68]
[1751548961115,4.79241024,152.9,152.85,236.92]
[1751548961514,11.33031024,152.9,152.87,6.5389]
[1751548962321,4.79241024,152.9,152.88,6.5387]
[1751548962717,4.79241024,152.9,152.85,236.92]
[1751548962920,11.33031024,152.9,152.87,6.539]
[1751548964823,6.5376,152.91,152.85,236.92]
[1751548965019,6.5376,152.91,152.86,4.79241024]
[1751548965322,6.5376,152.91,152.88,6.5384]
[1751548965923,6.5376,152.91,152.89,6.5383]
[1751548966222,6.5376,152.91,152.86,4.79241024]
[1751548966418,6.5376,152.91,152.88,6.5384]
[1751548969428,6.5376,152.91,152.89,6.5383]
[1751548969923,6.5376,152.91,152.86,4.79241024]
[1751548970625,6.5376,152.91,152.89,6.5383]
[1751548972027,6.5373,152.92,152.9,6.5379]
[1751548972226,6.5373,152.92,152.86,4.79241024]
[1751548972419,6.5373,152.92,152.89,6.5381]
[1751548972620,6.5375,152.91,152.89,6.5381]
[1751548972920,4.79241024,152.92,152.87,6.5392]
[1751548973229,6.5386,152.89,152.87,6.5392]
[1751548973923,6.5386,152.89,152.85,236.86]
[1751548973924,6.5386,152.89,152.86,6.5394]
[1751548974622,6.5386,152.89,152.87,6.5391]
[1751548977332,6.5386,152.89,152.86,6.5394]
[1751548978527,6.5381,152.9,152.85,236.86]
[1751548979031,6.5381,152.9,152.87,6.5388]
[1751548979232,6.5383,152.89,152.87,6.5388]
[1751548979433,4.79241024,152.92,152.86,6.5395]
[1751548979922,6.5386,152.89,152.86,6.5395]
[1751548980627,6.5386,152.89,152.87,6.5391]
[1751548981231,10.54369555,152.94,152.85,236.86]
[1751548981432,4.79241024,152.93,152.85,236.86]
[1751548981628,4.79241024,152.93,152.86,4.79241024]
[1751548981832,6.5375,152.92,152.89,6.538]
[1751548982031,4.79241024,152.93,152.89,6.538]
[1751548982231,4.79241024,152.93,152.87,191.14]
[1751548982532,6.5378,152.91,152.88,6.5384]
[1751548982935,6.5378,152.91,152.89,6.5383]
[1751548983133,6.5378,152.91,152.87,191.14]
[1751548983534,6.5378,152.91,152.88,6.5384]
[1751548983836,4.79241024,152.93,152.87,191.14]
[1751548984233,6.5381,152.9,152.87,191.14]
[1751548985338,6.5381,152.9,152.87,197.679]
[1751548985736,6.5377,152.91,152.87,191.14]
[1751548985928,4.79241024,152.93,152.88,6.5383]
[1751548986432,6.5378,152.91,152.88,6.5383]
[1751548986932,4.4972,152.94,152.87,195.93241024]
[1751548987131,6.5368,152.93,152.87,195.93241024]
[1751548987730,6.5364,152.94,152.89,4.79241024]
[1751548988633,6.5364,152.94,152.91,6.5372]
[1751548989240,6.5364,152.94,152.92,6.537]
[1751548989739,6.5364,152.94,152.91,6.5372]
[1751548990039,6.5364,152.94,152.9,45.62]
[1751548990634,6.5364,152.94,152.92,6.5368]
[1751548992140,8.7463,152.95,152.92,6.5368]
[1751548992338,2.2103,152.95,152.92,6.5368]
[1751548993738,6.5362,152.94,152.92,6.5368]
[1751548996437,6.5362,152.94,152.91,6.5373]
[1751548996737,7.00271024,152.95,152.9,45.62]
[1751548996937,4.79241024,152.93,152.9,45.62]
[1751548997133,6.5374,152.92,152.9,45.62]
[1751548997838,6.5374,152.92,152.9,52.1578]
[1751548998039,6.5368,152.93,152.9,45.62]
[1751548998441,6.5368,152.93,152.91,6.5372]
[1751548999447,6.5368,152.93,152.9,52.1577]
[1751549000840,6.5368,152.93,152.91,6.5375]
[1751549002542,6.5368,152.93,152.9,52.1577]
[1751549002738,4.79241024,152.93,152.9,45.62]
[1751549002942,8.25679555,152.95,152.86,45.62]
[1751549002943,4.79241024,152.91,152.86,45.62]
[1751549003640,6.5385,152.89,152.87,6.5391]
[1751549004044,4.79241024,152.91,152.86,52.1594]
[1751549004240,4.79241024,152.91,152.86,45.62]
[1751549004542,6.5386,152.89,152.87,6.5392]
[1751549006442,4.79241024,152.91,152.87,6.5392]
[1751549007543,10.61819555,152.93,152.87,6.5391]
[1751549007844,4.79241024,152.91,152.87,6.5391]
[1751549008542,6.5383,152.89,152.87,6.5391]
[1751549009649,6.538,152.9,152.88,6.5388]
[1751549020858,6.5383,152.89,152.87,6.539]
[1751549021058,4.79241024,152.9,152.86,45.62]
[1751549021255,10.61819555,152.93,152.83,190.9]
[1751549021454,4.79241024,152.9,152.83,195.69241024]
[1751549022060,6.04649555,152.91,152.85,4.79241024]
[1751549022355,6.04649555,152.92,152.85,4.79241024]
[1751549022557,6.5373,152.92,152.87,4.79241024]
[1751549023455,8.25679555,152.95,152.91,4.79241024]
[1751549023658,6.04649555,152.96,152.95,6.5358]
[1751549023857,8.04103539,152.98,152.95,6.5358]
[1751549023858,6.04649555,152.97,152.95,11.32821024]
[1751549024050,6.04649555,152.97,152.95,4.79241024]
[1751549024253,6.04649555,152.97,152.96,6.5353]
[1751549024655,6.04649555,152.98,152.96,6.5353]
[1751549024859,12.98259555,153.0,152.96,6.5353]
[1751549025057,6.9361,153.0,152.96,6.5353]
[1751549025260,6.5344,152.99,152.96,6.5353]
[1751549027862,6.5346,152.98,152.93,4.79241024]
[1751549028458,6.5346,152.98,152.95,6.5355]
[1751549028658,6.5349,152.97,152.92,236.44]
[1751549028863,6.5349,152.97,152.94,6.5359]
[1751549031869,6.5349,152.97,152.94,6.536]
[1751549032063,6.5354,152.96,152.92,45.56]
[1751549033064,4.79241024,152.94,152.89,565.02]
[1751549033268,4.79241024,152.92,152.89,6.5381]
[1751549033464,4.79241024,152.9,152.82,8.14058232]
[1751549033670,4.79241024,152.84,152.79,8.14058232]
[1751549033865,4.79241024,152.84,152.8,6.5419]
[1751549034064,4.79241024,152.84,152.78,45.54]
[1751549034772,6.541,152.83,152.8,6.542]
[1751549036469,6.5414,152.82,152.79,6.5424]
[1751549036861,4.79241024,152.84,152.79,6.5424]
[1751549037267,6.5412,152.83,152.79,6.5424]
[1751549037464,6.5412,152.83,152.8,6.5421]
[1751549038777,4.79241024,152.82,152.78,45.54]
[1751549039472,6.5422,152.81,152.78,45.54]
[1751549039874,4.79241024,152.82,152.78,45.54]
[1751549040179,4.79241024,152.8,152.74,45.5]
[1751549040476,4.79241024,152.8,152.74,236.3]
[1751549041267,6.5429,152.79,152.74,236.3]
[1751549041880,6.5429,152.79,152.76,6.5436]
[1751549043577,6.5432,152.78,152.75,571.3841]
[1751549044076,6.5427,152.79,152.75,571.3841]
[1751549044276,4.79241024,152.8,152.75,571.3841]
[1751549044477,4.79241024,152.76,152.71,45.5]
[1751549044682,4.79241024,152.76,152.71,236.32]
[1751549044982,2.2409,152.81,152.73,4.79241024]
[1751549045176,6.5433,152.78,152.73,4.79241024]
[1751549045575,2.2409,152.81,152.73,4.79241024]
[1751549045782,6.5427,152.79,152.73,4.79241024]
[1751549046479,4.79241024,152.8,152.73,4.79241024]
[1751549046980,6.5429,152.79,152.73,4.79241024]
[1751549048288,2.2409,152.81,152.75,4.79241024]
[1751549048481,4.79241024,152.8,152.76,236.34]
[1751549048683,4.79241024,152.8,152.76,190.84]
[1751549048981,11.33491024,152.8,152.77,6.5434]
[1751549049983,6.5427,152.79,152.77,6.5434]
[1751549050188,4.79241024,152.8,152.77,6.5434]
[1751549050487,11.33501024,152.8,152.77,6.5434]
[1751549051390,6.5427,152.79,152.77,6.5434]
[1751549051689,4.79241024,152.8,152.77,6.5434]
[1751549052687,11.33481024,152.8,152.77,6.5434]
[1751549053187,11.33481024,152.8,152.76,190.84]
[1751549054196,11.33481024,152.8,152.77,6.5434]
[1751549054591,6.5429,152.79,152.76,190.84]
[1751549054791,2.2409,152.81,152.76,190.84]
[1751549054995,4.79241024,152.83,152.76,190.84]
[1751549055188,4.79241024,152.83,152.8,6.5419]
[1751549055388,4.79241024,152.83,152.77,4.79241024]
[1751549056493,11.33361024,152.83,152.8,6.5421]
[1751549056899,11.33361024,152.83,152.81,6.5417]
[1751549057194,6.5414,152.82,152.77,4.79241024]
[1751549057594,6.5414,152.82,152.8,6.5421]
[1751549061098,6.5414,152.82,152.79,6.5424]
[1751549063001,6.5418,152.81,152.78,6.5428]
[1751549063401,6.5418,152.81,152.77,4.79241024]
[1751549064606,6.5415,152.82,152.79,6.5423]
[1751549065102,6.5418,152.81,152.79,6.5423]
[1751549065698,6.5411,152.83,152.77,4.79241024]
[1751549067496,6.5411,152.83,152.81,6.5415]
[1751549071305,6.5407,152.84,152.79,45.52]
[1751549072214,6.5409,152.83,152.79,45.52]
[1751549072502,2.3802,152.85,152.81,6.5415]
[1751549072695,6.5409,152.83,152.81,6.5415]
[1751549073404,6.5406,152.84,152.81,6.5415]
[1751549074301,6.5406,152.84,152.82,6.5413]
[1751549075404,6.5406,152.84,152.81,6.5415]
[1751549076302,6.5402,152.85,152.79,50.31241024]
[1751549076499,4.79241024,152.86,152.79,50.31241024]
[1751549077000,6.5407,152.84,152.81,6.5417]
[1751549078403,4.79241024,152.84,152.79,45.52]
[1751549078702,4.79241024,152.82,152.79,45.52]
[1751549079400,6.5421,152.81,152.79,45.52]
[1751549080106,6.5421,152.81,152.79,52.0626]
[1751549080604,6.5421,152.81,152.79,45.52]
[1751549082508,6.5422,152.8,152.79,45.52]
[1751549084410,6.542,152.81,152.79,45.52]
[1751549084605,4.79241024,152.82,152.79,45.52]
[1751549085610,6.5422,152.8,152.79,45.52]
[1751549086810,6.5427,152.79,152.75,801.4]
[1751549087208,6.5427,152.79,152.77,6.5432]
[1751549088011,11.33481024,152.8,152.77,6.5432]
[1751549089014,6.5424,152.8,152.78,6.543]
[1751549090316,6.5419,152.81,152.79,6.5425]
[1751549090815,6.5419,152.81,152.78,6.5429]
[1751549092823,6.5419,152.81,152.79,6.5426]
[1751549093623,6.8468,152.83,152.77,195.45241024]
[1751549093818,2.3306,152.83,152.77,195.45241024]
[1751549094126,2.3306,152.83,152.81,6.5415]
[1751549095321,8.8717,152.83,152.81,6.5415]
[1751549095826,2.3306,152.83,152.81,6.5415]
[1751549096425,8.8715,152.83,152.81,6.5415]
[1751549097527,8.8715,152.83,152.8,6.542]
[1751549100324,8.8715,152.83,152.77,195.45241024]
[1751549100834,2.3306,152.83,152.81,6.5417]
[1751549101029,6.5406,152.84,152.81,6.5417]
[1751549101932,2.2629,152.87,152.82,190.6]
[1751549102232,15.12537761,152.89,152.83,4.79241024]
[1751549102535,4.21838139,152.88,152.84,6.5403]
[1751549102834,6.11458598,152.89,152.84,6.5403]
[1751549103733,6.5395,152.87,152.84,6.5403]
[1751549106338,6.5395,152.87,152.85,6.54]
[1751549108537,8.37748598,152.91,152.84,4.79241024]
[1751549108729,2.2629,152.91,152.86,4.79241024]
[1751549108931,2.2629,152.91,152.82,190.6]
[1751549109132,6.47370433,152.91,152.85,6.5397]
[1751549110737,6.539,152.88,152.85,6.5397]
[1751549111436,6.5386,152.89,152.86,6.5396]
[1751549111938,4.79241024,152.9,152.86,6.5396]
[1751549112126,6.539,152.88,152.86,6.5396]
[1751549114033,6.5386,152.89,152.86,6.5396]
[1751549114337,4.79241024,152.9,152.86,6.5396]
[1751549115535,6.5388,152.88,152.86,6.5396]
[1751549116132,6.5388,152.88,152.85,6.5398]
[1751549116535,6.5388,152.88,152.84,4.79241024]
[1751549117240,6.5388,152.88,152.85,6.54]
[1751549118236,6.5388,152.88,152.86,6.5396]
[1751549119137,4.79241024,152.9,152.85,6.5398]
[1751549119331,4.79241024,152.9,152.84,4.79241024]
[1751549119641,4.79241024,152.9,152.82,190.6]
[1751549119839,4.79241024,152.9,152.83,4.79241024]
[1751549120241,6.539,152.88,152.83,4.79241024]
[1751549120942,6.539,152.88,152.86,6.5395]
[1751549125346,6.5392,152.87,152.85,6.5398]
[1751549125547,6.5392,152.87,152.85,196.9198]
[1751549126851,6.539,152.88,152.85,196.9198]
[1751549127148,6.539,152.88,152.86,6.5395]
[1751549129150,3.06658955,152.89,152.85,193.44658955]
[1751549129353,2.2629,152.91,152.86,3.06658955]
[1751549129546,5.32948955,152.91,152.87,3.06658955]
[1751549129742,6.5385,152.89,152.87,6.5389]
[1751549129947,3.06658955,152.9,152.87,6.5389]
[1751549130450,9.60478955,152.9,152.88,6.5387]
[1751549131659,3.06658955,152.9,152.87,6.539]
[1751549132257,9.60468955,152.9,152.88,6.5387]
[1751549134658,9.60468955,152.9,152.87,6.539]
[1751549134858,9.60468955,152.9,152.86,3.06658955]
[1751549135159,6.5384,152.89,152.87,6.5388]
[1751549135456,9.60498955,152.89,152.87,6.5388]
[1751549136050,3.06658955,152.89,152.87,6.5388]
[1751549136464,3.06658955,152.89,152.88,6.5388]
[1751549136656,9.60468955,152.9,152.88,6.5388]
[1751549137662,3.06658955,152.9,152.88,6.5388]
[1751549139662,9.60448955,152.9,152.88,6.5388]
[1751549139866,2.2629,152.91,152.89,6.5383]
[1751549140162,199.1012971,152.92,152.89,3.06658955]
[1751549140353,199.1012971,152.92,152.9,9.60428955]
[1751549140554,199.1012971,152.92,152.9,6.5377]
[1751549140755,199.1012971,152.92,152.9,196.8377]
[1751549140955,205.6383971,152.92,152.9,190.3]
[1751549141162,202.16788665,152.92,152.84,2.2581]
[1751549141352,199.1012971,152.92,152.85,45.32]
[1751549141557,9.60518955,152.89,152.87,6.5392]
[1751549141964,6.5386,152.89,152.87,6.5392]
[1751549142262,6.5386,152.89,152.86,9.60598955]
[1751549142564,6.5386,152.89,152.87,6.5392]
[1751549144464,6.5381,152.9,152.87,6.5392]
[1751549144666,9.01923477,152.91,152.87,6.5392]
[1751549144866,9.01923477,152.91,152.86,6.5395]
[1751549145064,6.5386,152.89,152.86,6.5395]
[1751549145260,6.5386,152.89,152.85,235.6]
[1751549146261,6.5386,152.89,152.86,6.5395]
[1751549146666,6.5386,152.89,152.85,235.6]
[1751549146860,6.5386,152.89,152.86,6.5395]
[1751549147061,6.5386,152.89,152.85,235.6]
[1751549147358,6.5386,152.89,152.86,6.5395]
[1751549148367,6.5386,152.89,152.87,6.5391]
[1751549150568,10.766325,152.9,152.87,6.5391]
[1751549151368,6.5384,152.89,152.87,6.5391]
[1751549155175,6.5385,152.89,152.86,6.5394]
[1751549155374,6.5385,152.89,152.85,240.39100977]
[1751549156576,6.5385,152.89,152.87,6.5389]
[1751549161580,6.5381,152.9,152.87,6.5389]
[1751549161784,8.41922017,152.93,152.87,4.79100977]
[1751549161988,4.79100977,152.91,152.83,12.93159209]
[1751549162185,4.7914996,152.89,152.85,45.26]
[1751549162389,10.91001977,152.89,152.84,6.5402]
[1751549162687,10.91124037,152.89,152.83,190.18]
[1751549162986,2.2474,152.9,152.85,4.7927202]
[1751549163185,2.12400943,152.92,152.85,4.7927202]
[1751549163385,13.21194037,152.93,152.89,6.5381]
[1751549163687,4.2268584,152.92,152.88,190.16]
[1751549163889,4.2268584,152.92,152.89,6.538]
[1751549163890,3.06519686,152.92,152.89,6.538]
[1751549164585,9.18371703,152.92,152.89,6.538]
[1751549164786,15.43382543,152.92,152.89,6.538]
[1751549164982,3.06519686,152.91,152.88,196.6985]
[1751549165187,13.41028685,152.92,152.88,193.22519686]
[1751549165390,3.06519686,152.92,152.88,193.22519686]
[1751549165892,6.5377,152.91,152.89,6.5383]
[1751549166793,10.76365619,152.91,152.88,199.76379686]
[1751549166994,6.538,152.9,152.88,196.6986]
[1751549167193,3.06519686,152.9,152.88,190.16]
[1751549167694,9.60329686,152.9,152.88,190.16]
[1751549168596,6.5381,152.9,152.87,245.00409686]
[1751549169697,9.60279686,152.91,152.88,6.5387]
[1751549170091,3.06519686,152.91,152.87,245.00419686]
[1751549170291,6.5382,152.9,152.87,245.00419686]
[1751549172097,6.5375,152.91,152.88,3.06519686]
[1751549172294,3.06519686,152.92,152.89,3.06519686]
[1751549172495,11.48441703,152.93,152.89,3.06519686]
[1751549172695,6.5374,152.92,152.9,190.12]
[1751549172900,8.66216287,152.92,152.9,190.12]
[1751549173495,6.5374,152.92,152.9,190.12]
[1751549173897,9.60259686,152.92,152.9,190.12]
[1751549176606,3.06519686,152.92,152.9,196.6579]
[1751549177007,6.11852017,152.93,152.9,196.6579]
[1751549177205,9.18371703,152.93,152.9,196.6579]
[1751549177701,6.5371,152.92,152.9,196.6579]
[1751549178510,6.5371,152.92,152.9,190.12]
[1751549179112,9.60229686,152.92,152.9,190.12]
[1751549179814,6.5371,152.92,152.9,190.12]
[1751549180113,9.60229686,152.92,152.9,190.12]
[1751549182617,3.06519686,152.92,152.9,196.6578]
[1751549182814,2.2474,152.94,152.9,193.18519686]
[1751549183017,2.12360198,152.94,152.91,3.06519686]
[1751549183213,8.66010198,152.94,152.91,9.60229686]
[1751549183617,2.12360198,152.94,152.91,9.60229686]
[1751549184218,208.00906777,152.95,152.91,9.60229686]
[1751549184414,3.06519686,152.94,152.91,9.60229686]
[1751549184618,6.5367,152.93,152.9,196.6577]
[1751549184917,6.5367,152.93,152.91,3.06519686]
[1751549185117,6.5367,152.93,152.9,199.72289686]
[1751549188422,6.5367,152.93,152.91,6.5374]
[1751549188624,6.5367,152.93,152.9,193.18519686]
[1751549188922,6.5367,152.93,152.9,199.72279686]
[1751549189424,6.5371,152.92,152.9,199.72279686]
[1751549189726,3.06519686,152.94,152.9,199.72279686]
[1751549190526,6.5368,152.93,152.9,199.72279686]
[1751549193821,6.5368,152.93,152.9,193.18519686]
[1751549194030,6.11967405,152.97,152.92,3.06519686]
[1751549194231,8.31627405,152.98,152.94,3.06519686]
[1751549194432,8.7314,152.98,152.95,6.5355]
[1751549194829,6.5348,152.98,152.95,6.5355]
[1751549195228,9.59949686,152.99,152.96,6.5352]
[1751549195826,6.5347,152.98,152.95,9.60079686]
[1751549196820,8.38877405,153.02,152.97,3.06519686]
[1751549197025,3.06519686,153.01,152.97,3.06519686]
[1751549197824,3.06519686,153.01,152.97,9.59989686]
[1751549198126,3.06519686,153.0,152.96,3.06519686]
[1751549198331,3.06519686,153.0,152.96,9.60029686]
[1751549198627,3.06519686,153.01,152.97,3.06519686]
[1751549198927,9.18487091,153.05,153.0,3.06519686]
[1751549199232,3.06519686,153.05,153.01,3.06519686]
[1751549199730,3.06519686,153.04,153.0,3.06519686]
[1751549200129,6.5324,153.03,153.0,9.59859686]
[1751549201832,6.5324,153.03,153.0,6.5334]
[1751549202231,4.78191915,153.04,152.99,235.12]
[1751549203634,4.78191915,153.05,152.99,235.12]
[1751549203837,6.5325,153.03,153.0,6.5334]
[1751549204239,6.5322,153.04,153.01,6.533]
[1751549205130,4.78191915,153.06,153.01,6.533]
[1751549205827,6.5322,153.04,153.01,6.533]
[1751549208137,6.5324,153.03,153.01,6.533]
[1751549208636,6.5324,153.03,153.0,6.5334]
[1751549209034,6.5329,153.02,152.99,241.6538]
[1751549209428,6.5331,153.02,152.99,235.12]
[1751549209631,4.78191915,153.04,152.99,241.6538]
[1751549210136,6.5328,153.02,152.99,241.6538]
[1751549210332,4.78191915,153.04,152.97,6.5349]
[1751549210538,13.0614,153.07,152.98,189.82]
[1751549210539,4.78191915,153.02,152.98,189.82]
[1751549210840,6.5343,152.99,152.97,45.18]
[1751549211137,6.5343,152.99,152.97,235.0]
[1751549211539,6.5345,152.98,152.97,45.18]
[1751549214144,11.31641915,152.98,152.97,45.18]
[1751549214336,6.5354,152.96,152.95,189.8]
[1751549214535,4.78191915,152.98,152.88,564.92]
[1751549214737,13.067,153.01,152.88,564.92]
[1751549214738,4.78191915,152.94,152.89,45.18]
[1751549214938,4.78191915,152.94,152.89,234.98]
[1751549215543,6.5374,152.92,152.89,45.18]
[1751549215732,4.78191915,152.94,152.89,234.98]
[1751549215937,6.5378,152.91,152.89,234.98]
[1751549216243,4.78191915,152.94,152.89,234.98]
[1751549216737,6.5377,152.91,152.89,234.98]
[1751549217342,4.78191915,152.94,152.89,235.02]
[1751549217743,4.78191915,152.9,152.89,45.18]
[1751549217938,6.54,152.86,152.85,45.2]
[1751549218145,6.54,152.86,152.85,235.04]
[1751549218333,4.78191915,152.88,152.85,235.04]
[1751549218538,6.5395,152.87,152.85,235.04]
[1751549218740,45.2,152.94,152.85,235.04]
[1751549218942,6.5388,152.88,152.85,235.04]
[1751549219443,6.5393,152.87,152.85,235.04]
[1751549220546,6.539,152.88,152.85,241.58]
[1751549221046,6.539,152.88,152.86,189.86]
[1751549222145,6.539,152.88,152.85,45.2]
[1751549222346,6.5392,152.87,152.86,189.86]
[1751549224647,6.5396,152.86,152.85,45.2]
[1751549225041,4.78191915,152.86,152.81,609.88]
[1751549225351,6.5401,152.85,152.83,189.88]
[1751549227547,2.3382,152.89,152.83,189.88]
[1751549227748,2.3382,152.89,152.83,194.66191915]
[1751549228140,6.539,152.88,152.84,6.5403]
[1751549228852,6.5392,152.87,152.84,6.5403]
[1751549230558,2.3382,152.89,152.85,6.5399]
[1751549230750,2.3382,152.89,152.86,189.92]
[1751549231552,6.5389,152.88,152.86,189.92]
[1751549232854,8.8767,152.89,152.86,189.92]
[1751549233156,2.3382,152.89,152.86,189.92]
[1751549233365,2.3382,152.89,152.86,196.4596]
[1751549233953,8.8768,152.89,152.86,196.4596]
[1751549234153,2.3382,152.89,152.86,196.4596]
[1751549235352,8.8767,152.89,152.86,196.4596]
[1751549235551,6.5385,152.89,152.86,196.4596]
[1751549235752,4.78191915,152.91,152.86,189.92]
[1751549237359,203.67333311,152.93,152.81,609.88]
[1751549237360,4.78191915,152.89,152.85,189.92]
[1751549238462,6.5395,152.87,152.85,189.92]
[1751549238959,6.5396,152.86,152.85,189.92]
[1751549239552,6.5394,152.87,152.84,6.5405]
[1751549239756,4.78191915,152.89,152.84,196.4605]
[1751549240460,6.5396,152.87,152.84,196.4605]
[1751549240660,4.78191915,152.89,152.84,189.92]
[1751549241856,6.5395,152.87,152.84,196.4604]
[1751549242158,4.78191915,152.89,152.84,189.92]
[1751549243154,6.5394,152.87,152.84,196.4605]
[1751549243762,6.539,152.88,152.85,6.54]
[1751549243956,4.78191915,152.9,152.84,189.92]
[1751549244662,6.5386,152.89,152.86,6.5394]
[1751549245358,6.5388,152.88,152.86,6.5394]
[1751549245559,6.5388,152.88,152.85,6.5398]
[1751549246163,6.5388,152.88,152.86,6.5396]
[1751549246765,6.5385,152.89,152.86,6.5396]
[1751549246957,4.78191915,152.9,152.84,189.92]
[1751549247564,4.78191915,152.9,152.85,6.5398]
[1751549248857,6.5391,152.88,152.85,6.5398]
[1751549249162,6.5391,152.88,152.86,6.5396]
[1751549249360,6.5391,152.88,152.84,189.92]
[1751549249762,6.5391,152.88,152.85,6.5399]
[1751549250763,6.5391,152.88,152.86,6.5395]
[1751549251163,203.67333311,152.93,152.87,4.78191915]
[1751549251366,203.67333311,152.93,152.9,6.5376]
[1751549251959,210.21013311,152.93,152.91,6.5375]
[1751549252167,210.21013311,152.93,152.89,4.78191915]
[1751549252553,203.67333311,152.93,152.89,4.78191915]